bitfinex/quotes_SOLUSD_20250721
["timestamp","ask_amount","ask_price","bid_price","bid_amount"]
[1753056283586,16.78468397,181.29,181.18,26.88]
[1753056283888,0.66,181.28,181.19,0.68]
[1753056284463,39.3,181.3,181.21,5.51845924]
[1753056284663,39.3,181.3,181.22,0.68]
[1753056285378,39.3,181.3,181.22,1.23181547]
[1753056285582,39.3,181.3,181.22,0.68]
[1753056285967,0.66,181.29,181.22,0.68]
[1753056286688,5.51632833,181.28,181.22,0.68]
[1753056286882,5.51632833,181.28,181.21,26.0]
[1753056287182,5.51632833,181.28,181.2,26.68]
[1753056287374,6.17610664,181.29,181.21,0.68]
[1753056288185,39.3,181.3,181.21,0.68]
[1753056288685,44.81574859,181.3,181.21,6.19833905]
[1753056288890,44.81574859,181.3,181.22,0.68]
[1753056289091,44.81531547,181.32,181.23,1.6445]
[1753056289389,45.47531547,181.32,181.24,0.68]
[1753056290598,0.66,181.31,181.24,0.68]
[1753056291093,0.66,181.31,181.21,0.68]
[1753056291867,0.66,181.31,181.2,26.0]
[1753056292068,16.78468397,181.28,181.19,1.6397]
[1753056292287,42.78468397,181.26,181.17,6.2135]
[1753056292498,5.51754579,181.24,181.17,6.2135]
[1753056292880,0.66,181.23,181.17,6.2135]
[1753056293066,0.66,181.22,181.17,6.2135]
[1753056293269,0.66,181.21,181.17,6.2135]
[1753056293772,16.78468397,181.23,181.17,0.03]
[1753056293969,0.66,181.2,181.17,0.03]
[1753056294189,0.66,181.19,181.17,0.03]
[1753056295194,0.66,181.22,181.17,0.03]
[1753056295371,6.17815472,181.22,181.17,0.03]
[1753056295572,5.51815472,181.22,181.17,0.03]
[1753056295772,5.51764892,181.24,181.18,0.88]
[1753056296173,71.61726226,181.25,181.18,0.88]
[1753056298089,39.44,181.25,181.19,0.68]
[1753056298591,44.95731615,181.25,181.19,0.68]
[1753056299180,45.61731615,181.25,181.18,1.8491]
[1753056299498,0.66,181.24,181.18,0.2]
[1753056299875,0.66,181.24,181.17,0.41]
[1753056300482,0.66,181.24,181.17,5.92966653]
[1753056300681,0.66,181.24,181.17,0.41]
[1753056301274,0.66,181.24,181.17,5.9295608]
[1753056301479,0.66,181.24,181.16,31.5198928]
[1753056301679,39.44,181.25,181.16,32.07189103]
[1753056301897,39.44,181.25,181.17,0.71]
[1753056302120,168.11378397,181.31,181.2,1.5777]
[1753056302121,0.67,181.31,181.2,1.5777]
[1753056302320,39.5,181.3,181.21,0.71]
[1753056302650,39.5,181.3,181.24,26.0]
[1753056302789,0.67,181.33,181.25,0.71]
[1753056303311,0.67,181.33,181.24,26.0]
[1753056303312,5.5151114,181.32,181.24,26.0]
[1753056303485,16.78468397,181.3,181.2,1.5777]
[1753056303685,40.17,181.29,181.2,7.09644767]
[1753056303913,40.17,181.29,181.21,0.71]
[1753056304424,17.45468397,181.28,181.2,1.5777]
[1753056304587,0.67,181.27,181.2,1.5777]
[1753056305710,45.01607441,181.29,181.21,0.71]
[1753056305917,0.67,181.28,181.21,0.71]
[1753056306923,6.18661634,181.28,181.21,0.71]
[1753056307134,0.67,181.27,181.2,1.5777]
[1753056307305,0.67,181.27,181.19,6.2222]
[1753056307822,0.67,181.27,181.16,1.5332]
[1753056308323,0.67,181.27,181.17,0.71]
[1753056308724,16.78468397,181.26,181.17,0.03]
[1753056308908,36.09609424,181.24,181.17,0.03]
[1753056309225,39.5,181.23,181.17,0.03]
[1753056309412,40.17,181.23,181.17,0.03]
[1753056310636,39.5,181.23,181.17,0.03]
[1753056310924,0.67,181.22,181.17,0.03]
[1753056311109,5.51845924,181.21,181.17,0.03]
[1753056311308,0.67,181.2,181.17,0.03]
[1753056311927,45.68805442,181.23,181.17,0.03]
[1753056312105,16.78468397,181.18,181.14,0.03]
[1753056312430,39.52,181.17,181.14,0.03]
[1753056312634,40.19,181.17,181.14,0.03]
[1753056312806,0.67,181.16,181.14,0.03]
[1753056313124,6.19026342,181.16,181.14,0.03]
[1753056313313,0.67,181.15,181.14,0.03]
[1753056315121,6.19028705,181.15,181.14,0.03]
[1753056315316,22.97497102,181.15,181.14,0.03]
[1753056315516,62.45497102,181.15,181.14,0.03]
[1753056316816,62.45497102,181.15,181.13,1e-08]
[1753056316817,66.79411418,181.15,181.13,1e-08]
[1753056317043,32.1905918,181.14,181.13,1e-08]
[1753056317427,22.16498397,181.13,181.11,1e-08]
[1753056317625,18.31758397,181.11,181.1,1e-08]
[1753056318130,18.98758397,181.11,181.1,1e-08]
[1753056319334,24.50909023,181.11,181.1,1e-08]
[1753056319650,16.78468397,181.07,181.01,12.69086995]
[1753056319827,16.78468397,181.05,181.01,12.69086995]
[1753056320036,26.0,181.02,181.01,12.69086995]
[1753056320227,82.93468397,181.02,181.01,12.69086995]
[1753056320936,66.15,181.02,181.01,12.69086995]
[1753056321443,88.45893543,181.02,181.01,12.69086995]
[1753056321846,16.78468397,181.01,180.9,6.9505]
[1753056322020,16.78468397,180.99,180.9,6.2405]
[1753056322224,40.15,180.98,180.9,6.2405]
[1753056322453,16.78468397,180.97,180.9,6.2405]
[1753056322632,0.67,180.96,180.9,6.2405]
[1753056322826,39.48,180.95,180.89,0.71]
[1753056324025,39.48,180.95,180.89,6.23813553]
[1753056324359,39.48,180.95,180.9,0.71]
[1753056324524,39.48,180.95,180.89,5.52813553]
[1753056324859,39.48,180.95,180.91,0.71]
[1753056325196,40.15,180.95,180.88,33.86702522]
[1753056325449,40.15,180.95,180.88,2.3386]
[1753056325842,39.62,180.94,180.89,0.71]
[1753056326041,39.62,180.93,180.89,0.71]
[1753056326227,39.62,180.93,180.88,1.6286]
[1753056326564,40.29,180.93,180.88,2.3386]
[1753056327045,40.29,180.93,180.88,1.6286]
[1753056327265,0.67,180.92,180.88,1.6286]
[1753056327473,17.45468397,180.91,180.86,6.547]
[1753056327629,5.52791597,180.9,180.84,0.71]
[1753056327946,39.64,180.89,180.84,0.71]
[1753056328450,26.0,180.93,180.85,0.71]
[1753056328451,39.64,180.88,180.85,0.71]
[1753056329259,40.31,180.88,180.83,1.6076]
[1753056329567,5.52883286,180.87,180.83,1.6076]
[1753056329772,40.31,180.88,180.83,1.6076]
[1753056329956,39.64,180.88,180.84,0.71]
[1753056330652,39.64,180.88,180.83,7.13745054]
[1753056331049,39.64,180.88,180.84,0.67]
[1753056331272,39.64,180.88,180.83,7.13745054]
[1753056331273,39.66,180.88,180.85,0.67]
[1753056331642,39.66,180.88,180.83,2.2776]
[1753056331846,39.66,180.88,180.84,0.67]
[1753056332144,0.69,180.87,180.82,6.206]
[1753056332373,0.69,180.86,180.79,1.5158]
[1753056332750,40.35,180.88,180.8,0.67]
[1753056332967,40.35,180.88,180.81,0.03]
[1753056333166,39.84,180.87,180.82,0.67]
[1753056333346,39.84,180.86,180.82,26.67]
[1753056333553,39.84,180.86,180.83,0.67]
[1753056333747,39.86,180.89,180.83,6.19989561]
[1753056334164,39.86,180.89,180.82,26.0]
[1753056334165,0.69,180.88,180.82,26.0]
[1753056335277,0.69,180.88,180.81,0.03]
[1753056335776,6.21867626,180.88,180.81,0.03]
[1753056336366,0.69,180.88,180.81,0.7]
[1753056336948,39.86,180.89,180.81,0.7]
[1753056337159,0.69,180.91,180.81,0.7]
[1753056337359,39.88,180.91,180.81,0.7]
[1753056337574,39.88,180.91,180.85,26.0]
[1753056337761,0.69,180.94,180.87,6.1112]
[1753056337950,39.94,180.95,180.88,2.186]
[1753056338861,39.94,180.95,180.89,0.67]
[1753056339055,0.69,181.0,180.9,26.0]
[1753056339251,39.94,180.99,180.91,0.67]
[1753056339650,39.94,180.99,180.92,5.52730488]
[1753056339868,39.94,180.99,180.93,0.67]
[1753056340972,39.94,180.99,180.9,39.819578]
[1753056340973,0.69,180.98,180.9,26.0]
[1753056341360,0.69,180.98,180.9,31.52782985]
[1753056341566,40.16,180.97,180.91,0.67]
[1753056341784,40.16,180.97,180.92,5.52730488]
[1753056342090,40.16,180.97,180.93,0.67]
[1753056342260,40.16,180.97,180.94,0.67]
[1753056342663,40.85,180.97,180.91,0.67]
[1753056342967,46.37580576,180.97,180.88,33.71445056]
[1753056343167,0.69,180.96,180.88,2.186]
[1753056344174,0.69,180.96,180.88,7.71443275]
[1753056345093,6.21617199,180.96,180.88,7.71443275]
[1753056345253,0.69,180.95,180.88,1.516]
[1753056345793,0.69,180.95,180.87,32.1112]
[1753056346091,0.69,180.95,180.87,37.63991969]
[1753056347778,0.69,180.95,180.88,6.19830356]
[1753056348258,5.52617199,180.96,180.88,6.19830356]
[1753056348463,40.85,180.97,180.89,0.67]
[1753056348977,6.21364118,181.04,180.91,1.5425]
[1753056349287,6.21364118,181.04,180.92,0.67]
[1753056349288,66.79,181.03,180.92,0.67]
[1753056349485,17.47468397,181.02,180.92,0.67]
[1753056349784,22.30954584,181.0,180.91,1.5425]
[1753056349983,22.30954584,181.0,180.87,6.1112]
[1753056349984,16.78468397,180.98,180.87,7.6321]
[1753056350154,40.1,180.97,180.87,7.6321]
[1753056350359,40.1,180.97,180.87,13.1609048]
[1753056350670,26.69,180.96,180.87,7.6321]
[1753056350872,17.47468397,180.95,180.87,6.1112]
[1753056351069,0.69,180.94,180.84,0.67]
[1753056351262,0.69,180.94,180.84,26.67]
[1753056352084,0.69,180.94,180.85,6.19944429]
[1753056352263,0.69,180.94,180.85,5.52944429]
[1753056352577,6.21681747,180.94,180.87,0.03]
[1753056352781,0.69,180.93,180.87,0.03]
[1753056353079,40.1,180.92,180.87,0.03]
[1753056353378,0.69,180.91,180.87,0.03]
[1753056353972,5.52791597,180.9,180.87,0.03]
[1753056354482,0.69,180.89,180.87,0.03]
[1753056355283,0.69,180.88,180.87,0.03]
[1753056356195,6.21791597,180.9,180.87,0.03]
[1753056356489,0.69,180.89,180.87,0.03]
[1753056357087,6.21762296,180.91,180.87,0.03]
[1753056357294,0.69,180.91,180.87,0.03]
[1753056357503,40.1,180.92,180.87,0.03]
[1753056357800,40.1,180.92,180.88,0.67]
[1753056358088,0.69,180.97,180.89,5.52822157]
[1753056358270,0.69,180.97,180.9,0.67]
[1753056358271,40.1,180.97,180.9,0.67]
[1753056359072,40.79,180.97,180.9,0.67]
[1753056359276,40.79,180.97,180.89,32.19822157]
[1753056359480,46.31585678,180.97,180.89,32.19822157]
[1753056359903,46.31585678,180.97,180.89,26.67]
[1753056360225,0.69,180.96,180.89,26.0]
[1753056360364,40.1,180.97,180.9,0.67]
[1753056360806,0.71,180.96,180.89,26.0]
[1753056361101,40.1,180.97,180.9,0.65]
[1753056361311,0.71,180.96,180.9,0.65]
[1753056361602,40.1,180.97,180.91,0.65]
[1753056361911,45.62586569,180.97,180.89,26.0]
[1753056362088,6.23628449,180.96,180.89,26.0]
[1753056362292,0.71,180.96,180.89,32.17818482]
[1753056362465,6.23610436,180.96,180.89,26.65]
[1753056362666,0.71,180.96,180.89,26.65]
[1753056363390,45.62585828,180.97,180.9,0.65]
[1753056363391,40.1,180.97,180.9,0.65]
[1753056364170,40.1,180.97,180.9,6.17762993]
[1753056364375,40.1,180.97,180.91,7.2488]
[1753056364572,0.77,181.01,180.92,0.65]
[1753056364800,40.85,181.01,180.92,0.65]
[1753056365891,0.71,181.0,180.92,0.65]
[1753056366089,0.71,181.0,180.93,5.52699939]
[1753056366288,6.23491725,181.0,180.93,0.65]
[1753056366880,0.71,181.0,180.93,0.65]
[1753056367084,6.23498567,181.0,180.93,0.65]
[1753056367282,0.71,180.99,180.91,6.5988]
[1753056367892,0.71,180.99,180.91,12.12633762]
[1753056368097,46.37465013,181.01,180.92,6.17700344]
[1753056368304,46.37465013,181.01,180.93,0.65]
[1753056369091,0.71,181.0,180.93,0.65]
[1753056369293,0.71,181.0,180.91,6.5988]
[1753056369994,0.71,181.0,180.92,0.65]
[1753056370192,6.23486586,181.0,180.92,6.17711967]
[1753056370417,6.23486586,181.0,180.92,5.67711967]
[1753056370722,16.78468397,180.98,180.87,7.8195]
[1753056371020,0.71,180.97,180.87,33.8195]
[1753056371203,40.04,180.96,180.87,33.8195]
[1753056371392,40.04,180.96,180.9,26.0]
[1753056371595,40.04,180.96,180.88,26.0]
[1753056372308,40.04,180.96,180.9,5.52791597]
[1753056372524,0.71,181.0,180.91,0.65]
[1753056372696,0.71,181.0,180.92,26.0]
[1753056373022,0.71,181.0,180.93,0.65]
[1753056374515,0.71,181.0,180.94,5.52669393]
[1753056374693,0.06,181.01,180.95,0.65]
[1753056375816,0.06,181.01,180.95,28.2448]
[1753056376020,0.06,181.01,180.97,26.0]
[1753056376498,0.06,181.01,180.98,0.65]
[1753056377734,0.06,181.01,180.99,0.65]
[1753056378308,0.06,181.01,181.0,0.65]
[1753056379099,0.06,181.01,180.97,32.17568647]
[1753056379301,0.06,181.01,180.97,31.52568647]
[1753056379709,0.06,181.01,180.97,32.17568647]
[1753056380421,0.06,181.01,180.98,1.20254724]
[1753056380624,0.06,181.01,181.0,26.0]
[1753056380798,0.06,181.01,181.0,43.33717015]
[1753056380998,0.06,181.01,181.0,43.98717015]
[1753056381194,0.06,181.05,181.04,26.0]
[1753056381721,0.06,181.05,181.04,26.65]
[1753056382314,0.06,181.05,181.04,32.17364118]
[1753056382823,0.06,181.05,181.01,8.7996]
[1753056383121,0.06,181.05,181.01,34.7996]
[1753056383324,0.71,181.04,180.98,0.65]
[1753056383498,0.71,181.04,180.97,46.3205]
[1753056383904,0.71,181.04,180.98,26.0]
[1753056384314,0.06,181.05,180.99,5.52516713]
[1753056384627,0.71,181.04,180.98,26.65]
[1753056385127,0.71,181.04,180.95,4.48341477]
[1753056385507,0.71,181.04,180.92,6.2959]
[1753056385508,16.78468397,181.03,180.92,6.2959]
[1753056385700,0.71,181.02,180.92,6.2959]
[1753056386423,5.52455665,181.01,180.92,6.2959]
[1753056386621,0.71,181.0,180.92,6.2959]
[1753056386923,0.71,181.0,180.89,0.03]
[1753056386924,16.78468397,180.99,180.89,0.03]
[1753056387126,41.03,180.98,180.89,0.03]
[1753056387629,0.71,180.97,180.89,0.03]
[1753056388326,0.71,180.97,180.9,0.65]
[1753056388522,5.52543799,180.99,180.9,6.17772345]
[1753056388828,45.80543799,180.99,180.91,0.65]
[1753056389408,40.28,180.99,180.91,0.65]
[1753056390126,45.8045175,181.02,180.93,26.0]
[1753056390331,40.28,181.02,180.94,0.65]
[1753056390510,0.71,181.01,180.94,0.65]
[1753056391025,0.71,181.01,180.92,26.0]
[1753056391429,0.71,181.01,180.92,31.52729303]
[1753056392124,40.28,181.02,180.93,0.72]
[1753056392629,40.28,181.02,180.94,5.52669393]
[1753056392809,46.50449867,181.02,180.93,6.24695011]
[1753056393018,0.7,181.01,180.93,0.72]
[1753056393604,16.78468397,181.0,180.9,26.72]
[1753056393807,0.7,180.99,180.9,0.72]
[1753056394006,0.7,180.99,180.9,26.72]
[1753056394308,0.7,180.99,180.91,26.0]
[1753056394813,6.22519075,180.99,180.91,31.52757091]
[1753056395028,6.22519075,180.99,180.94,0.03]
[1753056395526,5.52519075,180.99,180.94,0.03]
[1753056395730,0.7,180.98,180.94,0.03]
[1753056396934,0.7,181.0,180.94,0.03]
[1753056397116,6.22502601,181.0,180.94,0.03]
[1753056398822,41.02,181.02,180.94,0.75]
[1753056399535,40.32,181.02,180.94,6.27663545]
[1753056399738,0.06,181.02,180.96,16.78468397]
[1753056399908,0.06,181.02,180.97,0.72]
[1753056400109,0.06,181.02,180.98,0.72]
[1753056400311,0.06,181.02,180.99,0.72]
[1753056400531,0.06,181.02,180.95,95.5823]
[1753056400717,0.06,181.02,180.96,0.72]
[1753056401231,0.06,181.02,180.96,6.24582991]
[1753056401418,0.06,181.02,180.97,0.72]
[1753056402727,0.06,181.02,180.98,5.52547242]
[1753056402913,0.06,181.02,180.99,0.72]
[1753056403106,0.06,181.02,181.0,0.72]
[1753056403307,0.06,181.02,180.96,5.52582793]
[1753056403525,0.06,181.02,180.98,0.72]
[1753056403925,0.06,181.02,180.99,0.72]
[1753056404333,0.06,181.02,181.0,0.72]
[1753056404715,0.06,181.02,180.96,16.78468397]
[1753056404936,0.06,181.02,180.97,0.72]
[1753056405120,0.06,181.02,180.96,87.5]
[1753056405121,0.7,181.01,180.96,87.5]
[1753056405325,0.06,181.02,180.96,88.22]
[1753056406625,0.06,181.02,180.97,0.72]
[1753056406824,0.06,181.02,180.98,5.52547242]
[1753056407018,0.06,181.02,180.99,0.72]
[1753056407217,0.06,181.02,181.0,0.72]
[1753056407623,0.06,181.02,180.96,93.02599655]
[1753056407836,0.06,181.02,181.01,0.72]
[1753056408150,0.06,181.02,180.97,0.72]
[1753056408637,0.06,181.02,180.98,0.72]
[1753056409838,0.06,181.02,180.95,8.8023]
[1753056409839,0.7,181.01,180.95,8.8023]
[1753056410142,0.7,181.01,180.94,0.03]
[1753056410436,40.86,181.01,180.94,0.03]
[1753056410629,17.48468397,181.0,180.94,0.03]
[1753056411134,6.22516713,180.99,180.94,0.03]
[1753056411526,0.7,180.98,180.94,0.03]
[1753056411939,0.7,180.97,180.94,0.03]
[1753056412520,6.22516713,180.99,180.94,0.03]
[1753056412844,0.7,180.98,180.94,0.03]
[1753056413037,6.22569188,180.98,180.94,0.03]
[1753056413425,0.7,180.97,180.94,0.03]
[1753056414027,40.86,181.01,180.94,0.75]
[1753056414237,40.86,181.01,180.95,0.72]
[1753056414548,0.7,181.0,180.94,0.03]
[1753056415141,5.52516713,180.99,180.94,0.03]
[1753056415435,0.7,180.98,180.94,0.03]
[1753056415845,0.7,180.97,180.94,0.03]
[1753056416441,0.7,180.96,180.94,0.03]
[1753056417160,6.22562047,180.98,180.94,0.03]
[1753056417526,0.7,180.97,180.94,0.03]
[1753056417921,0.7,180.96,180.94,0.03]
[1753056418523,0.7,180.95,180.94,0.03]
[1753056418725,40.78,180.95,180.94,0.03]
[1753056419224,45.6063885,180.95,180.94,0.03]
[1753056419439,46.3063885,180.95,180.94,0.03]
[1753056420561,26.7,180.98,180.94,0.03]
[1753056420767,13.87131725,181.02,180.94,0.75]
[1753056420768,0.06,181.02,180.94,0.75]
[1753056420972,0.06,181.02,180.98,26.0]
[1753056421255,0.06,181.02,180.99,6.24509353]
[1753056421649,0.06,181.02,181.0,0.72]
[1753056422126,0.06,181.02,181.0,26.72]
[1753056422327,0.06,181.02,181.01,0.72]
[1753056423141,0.06,181.02,180.98,26.0]
[1753056423353,0.06,181.02,180.99,0.72]
[1753056423655,0.06,181.02,180.98,26.0]
[1753056423866,0.06,181.02,180.99,0.72]
[1753056424346,0.06,181.02,181.0,0.72]
[1753056424736,0.06,181.02,181.01,0.72]
[1753056425746,0.06,181.02,180.99,0.72]
[1753056426149,0.06,181.02,181.0,0.72]
[1753056426768,0.06,181.02,180.98,26.0]
[1753056426979,0.06,181.02,180.96,0.72]
[1753056427272,0.06,181.02,180.96,26.72]
[1753056428148,0.06,181.02,180.97,0.72]
[1753056428359,0.06,181.02,180.98,0.72]
[1753056428650,0.06,181.02,180.99,0.72]
[1753056428843,0.06,181.02,180.99,1.27251671]
[1753056429240,0.06,181.02,181.0,0.72]
[1753056429669,0.06,181.02,181.0,26.72]
[1753056430154,0.06,181.02,180.98,26.72]
[1753056430643,0.06,181.02,180.99,0.72]
[1753056430954,0.06,181.02,180.98,26.0]
[1753056431156,0.78,181.02,180.96,0.72]
[1753056431662,5.52455665,181.01,180.95,7.9098]
[1753056431883,45.56455665,181.01,180.95,7.9098]
[1753056432382,40.04,181.01,180.96,0.72]
[1753056432678,40.04,181.01,180.97,0.72]
[1753056432873,40.04,181.01,180.95,7.9098]
[1753056433080,40.04,181.01,180.97,0.72]
[1753056434964,40.76,181.01,180.95,8.6298]
[1753056435546,40.76,181.01,180.86,10.03]
[1753056435547,5.981,180.98,180.84,2.90758938]
[1753056435771,16.78468397,180.89,180.84,0.03]
[1753056435961,0.55279159,180.88,180.84,0.03]
[1753056436155,26.0,180.85,180.84,0.03]
[1753056436352,88.37412826,180.85,180.84,0.03]
[1753056436663,6.11944429,180.85,180.84,0.03]
[1753056436853,40.06,180.85,180.84,0.03]
[1753056437745,45.58944429,180.85,180.84,0.03]
[1753056438146,1.14279159,180.88,180.84,0.03]
[1753056438147,0.55279159,180.88,180.84,0.03]
[1753056438346,0.55279159,180.88,180.84,0.75]
[1753056438347,40.04,180.87,180.84,0.75]
[1753056438652,40.04,180.87,180.84,0.03]
[1753056438964,16.78468397,180.85,180.84,0.03]
[1753056439348,17.37468397,180.85,180.84,0.03]
[1753056440470,22.90412826,180.85,180.84,0.03]
[1753056441470,6.11944429,180.85,180.84,0.03]
[1753056441861,45.54944429,180.85,180.84,0.03]
[1753056442572,6.08197901,180.86,180.84,0.03]
[1753056442877,40.02,180.85,180.84,0.75]
[1753056443068,40.02,180.85,180.84,0.03]
[1753056443382,40.02,180.85,180.84,0.75]
[1753056443960,40.06,180.86,180.84,0.75]
[1753056444165,40.06,180.86,180.85,0.72]
[1753056445058,5.52944429,180.85,180.84,0.03]
[1753056446482,45.56944429,180.85,180.84,0.03]
[1753056446682,46.15944429,180.85,180.84,0.03]
[1753056446982,62.94412826,180.85,180.84,1e-08]
[1753056447887,46.15944429,180.85,180.84,1e-08]
[1753056448186,45.56944429,180.85,180.84,1e-08]
[1753056448965,46.15944429,180.85,180.84,1e-08]
[1753056449565,5.52944429,180.85,180.84,1e-08]
[1753056449772,45.52944429,180.85,180.84,1e-08]
[1753056450161,46.11944429,180.85,180.84,1e-08]
[1753056451601,45.50944429,180.85,180.84,1e-08]
[1753056451780,32.08198576,180.86,180.84,1e-08]
[1753056451985,39.96,180.85,180.84,0.69000001]
[1753056452185,39.96,180.85,180.84,1e-08]
[1753056452363,26.0,180.88,180.85,0.69]
[1753056452694,5.52913856,180.86,180.84,1e-08]
[1753056452986,5.52913856,180.86,180.84,0.69000001]
[1753056453197,0.55279159,180.85,180.84,1e-08]
[1753056454766,6.08223588,180.85,180.84,1e-08]
[1753056455494,5.52944429,180.85,180.84,1e-08]
[1753056456265,39.92,180.85,180.84,0.69000001]
[1753056458787,0.55279159,180.91,180.84,0.69000001]
[1753056458788,39.9,180.87,180.84,0.69000001]
[1753056459966,39.88,180.91,180.85,8.1253]
[1753056460171,39.88,180.91,180.86,0.69]
[1753056460961,39.88,180.91,180.87,0.69]
[1753056461269,39.88,180.91,180.88,0.69]
[1753056461893,45.40762186,180.91,180.85,96.3153]
[1753056462091,0.55279159,180.9,180.85,96.3153]
[1753056462293,0.55279159,180.9,180.84,1e-08]
[1753056462294,1.14279159,180.9,180.84,1e-08]
[1753056463099,5.52822157,180.89,180.84,1e-08]
[1753056463282,0.55279159,180.88,180.84,1e-08]
[1753056463482,39.88,180.87,180.85,0.69]
[1753056463892,6.08067408,180.91,180.85,0.69]
[1753056464208,39.86,180.9,180.85,0.69]
[1753056464367,39.86,180.9,180.85,26.69]
[1753056464574,39.86,180.9,180.86,0.69]
[1753056464786,39.86,180.9,180.87,0.69]
[1753056465307,45.38804144,180.9,180.87,0.69]
[1753056465599,39.86,180.9,180.88,0.69]
[1753056465769,39.86,180.9,180.89,0.69]
[1753056466485,39.86,180.93,180.89,0.69]
[1753056466685,39.86,180.93,180.9,0.69]
[1753056466907,40.41279159,180.93,180.85,26.0]
[1753056467075,40.41279159,180.93,180.87,0.69]
[1753056467413,45.93979922,180.93,180.87,0.69]
[1753056468797,45.38700763,180.93,180.87,0.69]
[1753056469006,0.55279159,180.92,180.87,0.69]
[1753056469307,5.52733281,180.92,180.88,0.69]
[1753056469482,5.52733281,180.92,180.89,0.69]
[1753056469804,5.52733281,180.92,180.84,31.52965638]
[1753056469805,6.0801244,180.92,180.87,0.69]
[1753056470314,6.0801244,180.92,180.85,0.69]
[1753056470315,6.6701244,180.92,180.85,0.69]
[1753056470597,6.6701244,180.92,180.84,113.50000001]
[1753056470598,0.59,180.91,180.84,1e-08]
[1753056470769,40.41279159,180.9,180.84,1e-08]
[1753056471209,19.34877549,180.89,180.84,1e-08]
[1753056471512,26.0,180.86,180.84,1e-08]
[1753056471715,40.41279159,180.85,180.84,1e-08]
[1753056471903,41.00279159,180.85,180.84,1e-08]
[1753056472981,40.41279159,180.85,180.84,1e-08]
[1753056473186,41.00279159,180.85,180.84,1e-08]
[1753056473488,46.53223588,180.85,180.84,1e-08]
[1753056475004,45.94223588,180.85,180.84,1e-08]
[1753056475205,46.53223588,180.85,180.84,1e-08]
[1753056476915,63.31691985,180.85,180.84,1e-08]
[1753056477296,45.94223588,180.85,180.84,1e-08]
[1753056478019,6.08223588,180.85,180.84,1e-08]
[1753056478223,45.94223588,180.85,180.84,1e-08]
[1753056478390,45.92223588,180.85,180.84,1e-08]
[1753056478596,40.39279159,180.85,180.84,1e-08]
[1753056478910,39.84,180.85,180.84,1e-08]
[1753056479323,6.08141515,180.88,180.84,1e-08]
[1753056479499,39.84,180.87,180.84,0.69000001]
[1753056479707,39.84,180.86,180.85,0.69]
[1753056480112,0.55279159,180.91,180.85,0.69]
[1753056480323,0.55279159,180.94,180.85,2.2564]
[1753056480521,39.84,180.93,180.86,0.69]
[1753056481899,59.73730794,180.93,180.86,0.69]
[1753056482092,59.73730794,180.93,180.85,1.5664]